[Event "5th Sharjah Masters 2022"]
[Site "Sharjah"]
[Date "2022.05.23"]
[Round "3.13"]
[White "Muradli, Mahammad"]
[Black "Adhiban, B.."]
[Result "1-0"]
[ECO "D38"]
[WhiteElo "2539"]
[BlackElo "2616"]
[Annotator "TA"]
[PlyCount "122"]
[EventDate "2022.05.21"]
[EventType "swiss"]
[EventCountry "UAE"]
[SourceTitle "playchess.com"]
[Source "ChessBase"]
[SourceQuality "1"]
[TimeControl "5400+30"]

{[%evp 14,122,16,17,37,13,18,0,0,-13,0,0,2,4,0,0,43,42,47,39,39,39,78,72,79,42,46,11,15,17,17,11,10,0,7,0,0,4,4,4,4,6,16,11,13,11,10,0,0,-7,0,0,0,0,0,-4,0,0,0,0,12,12,11,6,6,0,0,0,0,0,0,0,0,0,0,0,0,0,25,25,72,60,66,58,64,70,87,87,87,87,87,87,94,25,29,23,94,94,191,90,94,0,198,198,425,416,392,383,392,383,415]} 1. d4 {[%emt 0:00:53]} e6 {[%emt 0:00:07]} 2. c4 {[%emt 0:00:12]} Nf6 {[%emt 0:00:08]} 3. Nf3 {[%emt 0:00:12]} d5 {[%emt 0:00:11]} 4. Nc3 {[%emt 0:00:06]} Bb4 {[%emt 0:00:12]} 5. Bg5 {[%emt 0:05:21]} h6 {[%emt 0:00:10]} 6. Bxf6 {[%emt 0:00:19]} Qxf6 {[%emt 0:00:04]} 7. Qa4+ {[%emt 0:00:18]} Nc6 {[%emt 0:00:05]} 8. e3 {[%emt 0:00:06]} O-O {[%emt 0:00:07] D38: Queen's Gambit Declined: Ragozin Defence (4 Nf3 Bb4).} 9. Rc1 {[%emt 0:07:47]} Rd8 {[%emt 0:10:32]} 10. Qb3 {[%emt 0:14:24]} a5 {[%emt 0:10:18] [#] The position is equal.} 11. cxd5 $146 {[%emt 0:14:32]} ({Predecessor:} 11. a3 a4 12. Qc2 Ba5 13. cxd5 exd5 14. Be2 Bf5 15. Qd1 Ne7 16. O-O Bxc3 17. Rxc3 {½-½ (50) Inarkiev,E (2654)-Matlakov,M (2688) Sochi 2021}) 11... exd5 {[%emt 0:00:18]} 12. a3 {[%emt 0:00:07]} a4 {[%emt 0:03:34]} 13. Qd1 {[%emt 0:00:20]} Bxc3+ {[%emt 0:21:45]} 14. Rxc3 {[%emt 0:00:21]} Qg6 {[%emt 0:05:24]} 15. h3 {[%emt 0:02:49]} Bd7 {[%emt 0:16:53]} 16. Bd3 {[%emt 0:03:40]} Qd6 {[%emt 0:00:04]} (16... Qxg2 $2 17. Rh2 Qxh3 18. Rxh3 Bxh3 19. Ng1 $18) 17. O-O {[%emt 0:07:43]} Na5 {[%emt 0:03:10][%cal Oa5c4]} 18. Ne5 {[%emt 0:06:33]} Be8 {[%emt 0:02:45]} 19. Qc2 {[%emt 0:00:39] White is much more active.} Nc6 {[%emt 0:04:44]} 20. Nxc6 {[%emt 0:05:05]} Bxc6 {[%emt 0:00:09]} 21. Rc5 {[%emt 0:00:55]} Bd7 {[%emt 0:05:52]} 22. Rc1 {[%emt 0:01:17]} ({But not} 22. Rxc7 Bc6 23. Rxc6 (23. Bh7+ Kf8 $17) 23... bxc6 $17) 22... c6 {[%emt 0:00:07]} 23. Qd1 {[%emt 0:03:25]} g6 {[%emt 0:00:28]} 24. Bc2 {[%emt 0:04:06]} b6 {[%emt 0:00:15]} 25. Rc3 {[%emt 0:00:43]} b5 $1 {[%emt 0:00:02]} 26. Rc5 {[%emt 0:01:28]} Kg7 {[%emt 0:00:16]} 27. Qd2 {[%emt 0:05:39]} Be8 {[%emt 0:01:19]} 28. Qc3 {[%emt 0:01:50]} Qf6 {[%emt 0:02:28]} 29. Rd1 {[%emt 0:00:09]} Rd6 {[%emt 0:01:45]} 30. Qb4 {[%emt 0:03:59]} Bd7 {[%emt 0:02:29]} 31. Rc3 {[%emt 0:00:25]} Rd8 {[%emt 0:00:44]} 32. b3 {[%emt 0:02:59]} axb3 {[%emt 0:00:05]} 33. Bxb3 {[%emt 0:00:15]} Bf5 {[%emt 0:01:32]} 34. Rdc1 {[%emt 0:06:56]} Ra8 {[%emt 0:00:56]} (34... Qg5 {is interesting.} 35. Kh2 Be4 36. f3 Bf5) 35. a4 {[%emt 0:00:22]} bxa4 {[%emt 0:00:15]} 36. Bxa4 {[%emt 0:00:01][%cal Rc3c6]} Bd7 {[%emt 0:01:16][%cal Oc6c5] [#] White must now prevent ...c5!} 37. Bc2 {[%emt 0:01:10]} Re6 {[%emt 0:02:44]} ({Don't do} 37... Ra2 38. Ra3 Rxa3 39. Qxa3 $14) 38. Qb7 {[%emt 0:01:04][%csl LRa8,LRd7]} Qd8 {[%emt 0:00:06]} 39. Bd1 {[%emt 0:00:50]} Rb8 {[%emt 0:01:52]} 40. Qa7 {[%emt 0:00:02]} Ra8 {[%emt 0:00:07]} 41. Qc5 {[%emt 0:00:15]} Ra5 {[%emt 0:02:03]} 42. Qb4 {[%emt 0:00:05]} h5 {[%emt 0:00:30]} 43. Ra3 {[%emt 0:01:05]} Rxa3 {[%emt 0:00:18]} 44. Qxa3 {[%emt 0:00:01]} Qg5 {[%emt 0:00:55]} 45. Rb1 {[%emt 0:01:01]} Qe7 {[%emt 0:01:55]} 46. Qa7 {[%emt 0:01:28]} Be8 {[%emt 0:01:42]} (46... Qd6 $1 $11) 47. Rb7 {[%emt 0:00:14]} Qf6 {[%emt 0:00:24]} 48. Rb8 {[%emt 0:00:41]} Qe7 {[%emt 0:00:13]} 49. Qa8 {[%emt 0:00:37]} Qd7 {[%emt 0:00:57]} 50. Rd8 {[%emt 0:00:24]} Qe7 {[%emt 0:00:05]} 51. Qb8 {[%emt 0:00:28]} Kh7 {[%emt 0:00:59]} 52. Ba4 {[%emt 0:00:22]} Kg7 {[%emt 0:00:14][%cal Oe7a3]} 53. Rc8 {[%emt 0:00:10]} ({White should play} 53. Bb3 $16) 53... Qa3 $11 {[%emt 0:00:45]} 54. Bb3 $36 {[%emt 0:01:05][%cal Ba4b3,Bb3d1,Bd1g4][%mdl 2080] White is pushing.} Qe7 {[%emt 0:00:34]} (54... Kf8 $11 {remains equal.}) 55. Bd1 {[%emt 0:00:07]} Qd7 {[%emt 0:00:24]} (55... Kg8 $16 56. g4 hxg4) 56. Rd8 {[%emt 0:00:36]} (56. g4 $18 {is more deadly.}) 56... Qe7 $16 {[%emt 0:00:02]} 57. Rc8 {[%emt 0:00:01]} (57. Be2 $16) 57... Qd7 $1 $18 {[%emt 0:00:01]} 58. g4 {[%emt 0:01:15][%cal Bg2g4,Bg4g5][%mdl 32]} h4 $2 {[%emt 0:01:35]} (58... Re7 {keeps fighting.} 59. gxh5 Qe6 60. hxg6 fxg6) 59. g5 {[%emt 0:00:30] [#] aiming for Bg4.} Qe7 {[%emt 0:00:06] White is winning.} 60. Bg4 {[%emt 0:00:13]} Re4 {[%emt 0:00:54]} 61. Kf1 {[%emt 0:00:04]} Kf8 {[%emt 0:01:06] Weighted Error Value: White=0.10 (very precise) /Black=0.12 (very precise)} 1-0

[Event "5th Sharjah Masters 2022"]
[Site "Sharjah"]
[Date "2022.05.23"]
[Round "3.14"]
[White "Narayanan.S.L"]
[Black "Kamalidenova, Meruert"]
[Result "1-0"]
[ECO "E44"]
[WhiteElo "2662"]
[BlackElo "2408"]
[Annotator "TA"]
[PlyCount "55"]
[EventDate "2022.05.21"]
[EventType "swiss"]
[EventCountry "UAE"]
[SourceTitle "playchess.com"]
[Source "ChessBase"]
[SourceQuality "1"]
[TimeControl "5400+30"]

{[%evp 12,55,45,34,64,69,60,64,65,67,84,87,100,88,90,96,114,91,118,116,118,117,116,118,117,115,138,116,204,183,201,225,413,431,420,438,566,574,981,728,721,716,842,602,656,594]} 1. d4 {[%emt 0:00:04]} Nf6 {[%emt 0:00:07]} 2. c4 {[%emt 0:00:07]} e6 {[%emt 0:00:06]} 3. Nc3 {[%emt 0:00:12]} Bb4 {[%emt 0:00:15]} 4. e3 {[%emt 0:00:23]} b6 {[%emt 0:02:28]} 5. Nge2 {[%emt 0:00:58]} O-O {[%emt 0:02:31]} 6. a3 {[%emt 0:00:21]} Be7 {[%emt 0:00:53]} 7. e4 {[%emt 0:04:16]} c5 {[%emt 0:02:42] E44: Nimzo-Indian: Rubinstein: 4...b6 5 Ne2.} 8. d5 {[%emt 0:01:08]} exd5 {[%emt 0:01:11]} 9. cxd5 {[%emt 0:00:42] [#] Black must now prevent d6.} d6 {[%emt 0:03:34] White is slightly better.} 10. Ng3 {[%emt 0:00:18] [#]} Nfd7 $146 {[%emt 0:04:27]} ({Predecessor:} 10... a6 11. Be2 b5 12. b4 Nbd7 13. Be3 Ne8 14. O-O Bf6 15. Rc1 c4 16. Nf5 Bxc3 17. Rxc3 {1-0 (38) Kayonde,A (2404)-Adly,A (2607) Kampala 2016}) 11. Be2 {[%emt 0:07:00] White is more active.} Bh4 {[%emt 0:03:21]} 12. O-O {[%emt 0:10:37]} (12. Nf5 {is interesting.} Ne5 13. Nxh4 Qxh4 14. O-O) 12... Bxg3 {[%emt 0:04:39]} 13. hxg3 {[%emt 0:00:07]} a6 {[%emt 0:01:32]} 14. a4 {[%emt 0:03:23]} a5 {[%emt 0:05:49]} 15. b3 $36 {[%emt 0:19:30][%mdl 2048] Keeping Black busy.} Na6 {[%emt 0:02:30]} 16. Bb2 {[%emt 0:09:39]} Nb4 17. Qd2 {[%emt 0:40:15]} Qe7 {[%emt 0:10:24]} 18. Rae1 {[%emt 0:00:00]} Bb7 {[%emt 0:01:03]} 19. Bb5 {[%emt 0:00:00]} Rae8 {[%emt 0:06:45]} (19... Ne5 $16) 20. Nd1 $18 {[%emt 0:00:00] [#] Ne3 is the strong threat.} Rd8 {[%emt 0:06:12]} 21. f3 {[%emt 0:00:00]} f5 $2 {[%emt 0:08:45]} (21... f6 {was necessary.} 22. Ne3 Ne5) 22. exf5 {[%emt 0:00:00]} Qf7 {[%emt 0:00:10]} 23. Re6 {[%emt 0:00:00]} Nxd5 {[%emt 0:06:18] White is clearly winning.} 24. Bc4 {[%emt 0:00:00] A strong pair of Bishops.} Qxf5 {[%emt 0:02:27]} 25. Rxd6 {[%emt 0:00:00] Strongly threatening Ne3.} N7f6 {[%emt 0:00:56]} 26. Ne3 {[%emt 0:00:00]} Qc8 {[%emt 0:02:20]} 27. Rxd8 {[%emt 0:00:00]} Rxd8 {[%emt 0:00:07]} 28. Bxf6 {[%emt 0:00:00] Weighted Error Value: White=0.16 (very precise) /Black=0.35} 1-0

[Event "5th Sharjah Masters 2022"]
[Site "Sharjah"]
[Date "2022.05.23"]
[Round "3.15"]
[White "Kuybokarov, Temur"]
[Black "Sargissian, Gabriel"]
[Result "0-1"]
[ECO "C84"]
[WhiteElo "2582"]
[BlackElo "2694"]
[Annotator "TA"]
[PlyCount "42"]
[EventDate "2022.05.21"]
[EventType "swiss"]
[EventCountry "UAE"]
[SourceTitle "playchess.com"]
[Source "ChessBase"]
[SourceQuality "1"]
[TimeControl "5400+30"]

{[%evp 15,42,10,16,8,7,10,18,16,8,6,9,0,0,0,0,0,15,6,16,0,52,14,8,10,17,8,8,14,0]} 1. e4 {[%emt 0:00:05]} e5 {[%emt 0:00:07]} 2. Nf3 {[%emt 0:00:05]} Nc6 {[%emt 0:00:23]} 3. Bb5 {[%emt 0:00:07][%cal Bf1b5,Bb5a4,Ba4b3][%mdl 32]} a6 {[%emt 0:00:47]} 4. Ba4 {[%emt 0:00:15]} Nf6 {[%emt 0:00:35]} 5. O-O {[%emt 0:00:13]} Be7 {[%emt 0:00:19]} 6. d3 {[%emt 0:00:25]} b5 {[%emt 0:00:22]} 7. Bb3 {[%emt 0:00:06]} d6 {[%emt 0:00:42]} 8. a4 {[%emt 0:00:14]} Bd7 {[%emt 0:01:42]} 9. Bd2 {[%emt 0:00:18] C84: Closed Ruy Lopez: Unusual White 6th moves.} b4 {[%emt 0:09:28]} 10. a5 {[%emt 0:02:36]} O-O {[%emt 0:01:59]} 11. h3 {[%emt 0:05:13]} Qc8 {[%emt 0:01:49]} 12. Be3 {[%emt 0:06:15]} Be6 {[%emt 0:04:10] [#]} 13. c3 $146 {[%emt 0:06:29]} ({Predecessor:} 13. Nbd2 Bxb3 14. Nxb3 d5 15. Bg5 Rd8 16. Bxf6 Bxf6 17. Nfd2 dxe4 18. Nxe4 Be7 19. Qf3 {½-½ (38) Nepomniachtchi,I (2628)-Korotylev,A (2587) Moscow 2009}) 13... Rb8 {[%emt 0:12:21]} 14. Ba4 {[%emt 0:09:06]} Qb7 {[%emt 0:03:17]} 15. Ng5 {[%emt 0:01:54]} Bd7 {[%emt 0:01:24]} 16. Nd2 {[%emt 0:00:42]} Nd8 {[%emt 0:08:56]} 17. Bc2 {[%emt 0:04:41]} Ne6 {[%emt 0:02:17]} ({Black should try} 17... Bb5 $11) 18. Ngf3 {[%emt 0:12:56]} Bb5 {[%emt 0:08:06] The position is equal.} 19. Re1 {[%emt 0:07:12]} bxc3 {[%emt 0:01:11]} 20. bxc3 {[%emt 0:00:07]} c5 {[%emt 0:00:22]} 21. Qb1 {[%emt 0:10:04]} Nh5 {[%emt 0:10:41][%mdl 32768] A rather calm draw.  Weighted Error Value: White=0.05 (flawless) /Black=0.08 (flawless) . Loss on time!?} 0-1

[Event "5th Sharjah Masters 2022"]
[Site "Sharjah"]
[Date "2022.05.23"]
[Round "3.16"]
[White "Kadric, Denis"]
[Black "Erigaisi Arjun"]
[Result "0-1"]
[ECO "B77"]
[WhiteElo "2576"]
[BlackElo "2675"]
[Annotator "TA"]
[PlyCount "70"]
[EventDate "2022.05.21"]
[EventType "swiss"]
[EventCountry "UAE"]
[SourceTitle "playchess.com"]
[Source "ChessBase"]
[SourceQuality "1"]
[TimeControl "5400+30"]

{[%evp 21,70,14,39,27,43,35,34,40,39,35,27,0,0,-1,-23,-25,-41,-35,-35,-60,-38,-81,-69,-86,-68,-80,-89,-97,-95,-122,-136,-144,-143,-152,-154,-150,-160,-144,-108,-234,-220,-227,-227,-229,-198,-440,-312,-292,-277,-254,-219]} 1. e4 {[%emt 0:00:03] Ftacnik,L} c5 {[%emt 0:00:12]} 2. Nc3 {[%emt 0:00:36]} Nc6 {[%emt 0:00:08]} 3. Nge2 {[%emt 0:00:02]} g6 {[%emt 0:00:08]} 4. d4 {[%emt 0:00:03]} cxd4 {[%emt 0:00:05]} 5. Nxd4 {[%emt 0:00:01]} Bg7 {[%emt 0:00:07]} 6. Be3 {[%emt 0:00:01]} Nf6 {[%emt 0:00:09]} 7. Bc4 {[%emt 0:00:03]} O-O {[%emt 0:00:07]} 8. Bb3 {[%emt 0:00:01]} d6 {[%emt 0:00:08]} 9. f3 {[%emt 0:00:03]} Bd7 {[%emt 0:00:08]} 10. h4 {[%emt 0:00:08]} h5 {[%emt 0:00:06]} 11. Qd2 {[%emt 0:00:27]} Rc8 {[%emt 0:00:06]} 12. Nxc6 {[%emt 0:08:58] B77: Sicilian Dragon: Yugoslav Attack, 9 Bc4 sidelines.} bxc6 {[%emt 0:00:15]} 13. Bh6 {[%emt 0:00:07]} ({Not} 13. Bxa7 c5 14. a4 Ra8 15. Bxc5 (15. Nb5 $2 c4 $19) 15... dxc5 $17) 13... c5 {[%emt 0:04:20]} 14. Bc4 {[%emt 0:00:21] White is slightly better.} Qb6 {[%emt 0:03:20]} 15. Bxg7 {[%emt 0:02:41]} Kxg7 {[%emt 0:00:21]} 16. b3 {[%emt 0:00:02]} Be6 {[%emt 0:03:28]} 17. Nd5 {[%emt 0:02:46]} Bxd5 {[%emt 0:03:05]} 18. exd5 {[%emt 0:00:02]} e5 {[%emt 0:02:09][%cal Be7e5,Be5e4][%mdl 32] [#]} 19. a4 $146 {[%emt 0:07:45]} ({Predecessor:} 19. dxe6 d5 20. Be2 c4 21. c3 Rce8 22. bxc4 Rxe6 23. Kf1 Rfe8 24. Bd3 dxc4 25. Bxc4 Ne4 {0-1 (25) Anand,V (2725)-Kasparov,G (2795) New York 1995 CBM 049 [Ftacnik,L]}) 19... Qb4 {[%emt 0:14:58]} 20. a5 {[%emt 0:07:56]} e4 {[%emt 0:15:27]} 21. c3 {[%emt 0:10:57]} Qb7 {[%emt 0:05:43]} 22. O-O {[%emt 0:12:53]} exf3 {[%emt 0:04:13]} 23. Qf4 {[%emt 0:00:03] Prevents Ne4.} Ng4 {[%emt 0:02:41] Strongly threatening ...f2+.} 24. Rxf3 {[%emt 0:06:35]} Qe7 {[%emt 0:05:58]} 25. Qg3 {[%emt 0:00:09]} Qd7 {[%emt 0:03:16] Against Bb5} 26. Rff1 {[%emt 0:08:03]} Rce8 {[%emt 0:00:49] Prevents Be2.} 27. Rae1 {[%emt 0:00:04] Inhibits Re3.} Rxe1 28. Rxe1 {[%emt 0:00:02]} Re8 {[%emt 0:04:54]} 29. Re2 {[%emt 0:00:01]} Re5 {[%emt 0:02:39]} 30. Rxe5 {[%emt 0:15:41] This move loses the game for White.} (30. b4 $17 {was forced.}) 30... Nxe5 $17 {[%emt 0:00:19] KQB-KQN} 31. Be2 {[%emt 0:00:01]} Qf5 {[%emt 0:01:57]} 32. c4 {[%emt 0:00:35]} Kh7 {[%emt 0:01:47]} 33. Bf1 $2 {[%emt 0:06:39] [#]} (33. Qe3) 33... Qc2 {[%emt 0:04:12]} 34. Qe3 {[%emt 0:00:04]} a6 {[%emt 0:01:07]} 35. Be2 {[%emt 0:06:16]} Qa2 {[%emt 0:01:37] Weighted Error Value: White=0.24 (precise) /Black=0.11 (very precise)} 0-1

[Event "5th Sharjah Masters 2022"]
[Site "Sharjah"]
[Date "2022.05.23"]
[Round "3.17"]
[White "Mastrovasilis, Athanasios"]
[Black "Abdusattorov, Nodirbek"]
[Result "0-1"]
[ECO "D35"]
[WhiteElo "2540"]
[BlackElo "2661"]
[Annotator "TA"]
[PlyCount "118"]
[EventDate "2022.05.21"]
[EventType "swiss"]
[EventCountry "UAE"]
[SourceTitle "playchess.com"]
[Source "ChessBase"]
[SourceQuality "1"]
[TimeControl "5400+30"]

{[%evp 12,118,33,17,42,41,34,19,31,10,12,14,13,0,0,0,0,0,0,0,18,16,20,0,0,0,59,56,65,30,6,0,7,-80,0,-108,-114,-111,0,0,0,0,0,0,0,0,0,-40,0,0,0,0,25,28,77,0,765,0,0,0,0,0,0,0,0,0,0,0,0,0,19,0,48,0,0,-450,-433,-12832,-12832,-12832,-12831,-12839,-12839,-12840,-12840,-29980,-12838,-12841,-12842,-12842,-12843,-12843,-12843,-12844,-12844,-12841,-12842,-29981,-29982,-29982,-2350,-29983,-29984,-29984,-29985,-29989,-29990,-29989,-29990]} 1. d4 {[%emt 0:00:03]} Nf6 {[%emt 0:00:13]} 2. c4 {[%emt 0:00:21]} e6 {[%emt 0:00:06]} 3. Nc3 {[%emt 0:00:09]} d5 {[%emt 0:00:12]} 4. cxd5 {[%emt 0:00:49]} exd5 {[%emt 0:00:07]} 5. Bg5 {[%emt 0:00:11][%cal Bc1g5,Bg5h4,Bh4g3,Bg3e5][%mdl 32]} Bb4 {[%emt 0:00:06]} 6. e3 {[%emt 0:08:02]} h6 {[%emt 0:00:14]} 7. Bh4 {[%emt 0:01:38]} g5 {[%emt 0:00:07] D35: Queen's Gambit Declined: Exchange Variation.} 8. Bg3 {[%emt 0:00:04]} Ne4 {[%emt 0:00:09]} 9. Qc2 {[%emt 0:07:22]} h5 {[%emt 0:02:30] The position is equal.} 10. Bd3 {[%emt 0:07:39]} (10. f3 $5 {[%cal Rf3e4]} Nxc3 11. bxc3 $14) 10... h4 {[%emt 0:17:59]} 11. Be5 {[%emt 0:00:31]} f6 {[%emt 0:00:09]} 12. Bxe4 {[%emt 0:00:22]} dxe4 {[%emt 0:00:23]} 13. d5 $1 {[%emt 0:00:53]} Na6 {[%emt 0:07:09]} (13... fxe5 14. Qa4+ c6 15. Qxb4 $14) 14. a3 {[%emt 0:12:17]} Bxc3+ {[%emt 0:07:40]} 15. Bxc3 {[%emt 0:00:13]} Qxd5 {[%emt 0:00:16] White must now prevent ...Nc5.} 16. Bxf6 {[%emt 0:07:55]} O-O {[%emt 0:04:32]} 17. Rd1 {[%emt 0:02:28]} Qf5 {[%emt 0:03:43]} 18. Bd4 {[%emt 0:04:24] [#]} Be6 $146 {[%emt 0:23:33]} ({Black should try} 18... c5 $11 19. Bc3 g4) ({Predecessor:} 18... c5 19. Bc3 g4 20. Rd6 Be6 21. f4 exf3 22. Qxf5 Bxf5 23. gxf3 Rae8 24. Rh6 Rxe3+ 25. Kf2 Rd3 26. h3 g3+ {½-½ (26) Quinones Borda,J (2082)-Noble,M (2305) LSS email 2008}) 19. Nh3 $1 $14 {[%emt 0:19:04]} c5 {[%emt 0:02:14] Inhibits b4.} 20. Bc3 {[%emt 0:00:08][%cal Og2g4]} Nc7 $1 {[%emt 0:00:00]} 21. O-O {[%emt 0:11:08]} Bc4 $132 {[%emt 0:01:41][%mdl 2048] Black is not holding back} 22. f4 {[%emt 0:03:43]} (22. Rfe1 $11) 22... Ne6 {[%emt 0:03:31]} ({Better is} 22... Bxf1 $17 23. Qb3+ Qf7 24. Qxf7+ Rxf7 25. Kxf1 gxf4 26. exf4 Re8) 23. Rf2 {[%emt 0:02:15]} (23. Rd7 $11 Bxf1 24. Nxg5) 23... g4 $1 $17 {[%emt 0:00:50]} 24. Ng5 {[%emt 0:07:46]} Nxg5 {[%emt 0:01:44]} (24... g3 $1 $17 {aiming for ...Bd3.} 25. Nxe6 gxf2+ 26. Qxf2 Qxe6 27. Qxh4 Bd3 28. Qh8+ Kf7 29. Qh5+ Ke7 30. Qxc5+ Kd7 31. Qb5+ (31. Bb4 $2 Rf5 $19) 31... Kc8 32. Qc5+ Kd7 33. Qb5+ (33. Bb4 $2 Rf5 $19) 33... Kc8 34. Qc5+ Kd7) 25. fxg5 $11 {[%emt 0:00:07]} Qxf2+ {[%emt 0:00:11]} 26. Qxf2 {[%emt 0:00:06]} Rxf2 {[%emt 0:00:04]} 27. Kxf2 $17 {[%emt 0:00:04][%mdl 4096] Endgame KRB-KRB} Bd3 {[%emt 0:00:13]} 28. g3 {[%emt 0:01:05]} h3 {[%emt 0:00:07]} 29. Ke1 {[%emt 0:00:19]} b5 {[%emt 0:05:08]} 30. Rd2 {[%emt 0:00:19]} Rf8 {[%emt 0:00:08][%csl Gd3][%cal Rf8f1]} 31. Bf6 $1 {[%emt 0:00:20]} b4 {[%emt 0:00:19]} 32. Rf2 {[%emt 0:00:51]} Kh7 {[%emt 0:04:42] [#]} (32... Rc8 $11) 33. Be7 {[%emt 0:01:24]} ({White should play} 33. Rf4 $1 $16) 33... bxa3 $2 {[%emt 0:00:18][%mdl 8192]} 34. bxa3 $2 {[%emt 0:00:16]} ({Not} 34. Rxf8 a2 35. Rf7+ Kg8 36. Rf8+ Kg7 37. Bf6+ Kxf8 $17) ({White must play} 34. Bxf8 $18 a2 35. Rf7+ Kg8 {[#]} 36. Rxa7 $1 Kxf8 37. Rxa2) 34... Rb8 {[%emt 0:02:09]} 35. Bxc5 {[%emt 0:00:30]} a5 {[%emt 0:00:12]} 36. Bd4 {[%emt 0:01:04] Strongly threatening Rf6.} Kg6 {[%emt 0:00:29]} 37. Rb2 {[%emt 0:00:24] Against Rb3} Rc8 {[%emt 0:00:31]} 38. Bf6 {[%emt 0:01:04]} Rc6 {[%emt 0:01:14]} 39. Kd2 {[%emt 0:00:23]} Kf5 {[%emt 0:00:09]} 40. Bc3 {[%emt 0:00:41]} Rd6 {[%emt 0:00:51]} 41. Bxa5 {[%emt 0:00:57]} Ba6+ {[%emt 0:00:25]} (41... Kxg5 $11 42. Kc3 Kf5) 42. Ke1 {[%emt 0:00:13]} (42. Kc2 $14) 42... Rd3 $11 {[%emt 0:00:17]} 43. Kf2 {[%emt 0:00:36][%mdl 8192]} (43. Rc2 $11 {and White is okay.} Rxe3+ 44. Kd2 Rd3+ 45. Ke1) 43... Rxa3 $19 {[%emt 0:00:33] ...Ra1 is the strong threat.} 44. Bb4 {[%emt 0:00:36]} (44. Be1 $142 Bd3 45. Bb4) 44... Ra1 {[%emt 0:00:08][%csl Ga6][%cal Ra1f1]} 45. Be1 {[%emt 0:00:07]} Kxg5 {[%emt 0:00:10]} 46. Rd2 {[%emt 0:00:12]} Bd3 {[%emt 0:01:00]} 47. Rb2 {[%emt 0:00:06]} Kf5 {[%emt 0:00:13]} 48. Rb8 {[%emt 0:02:42]} Ke6 {[%emt 0:01:50]} (48... Ra2+ $142 49. Kg1 Rg2+ 50. Kh1 Re2 51. Bc3 Rc2 52. Rb1 Rxc3 53. Re1 Ke6 54. Rd1 Rc2 55. Re1 Rg2 56. Rd1 Re2 57. Kg1 Kd5 58. Ra1 Rxe3 59. Ra5+ Ke6 60. Rc5 Rf3 61. Rc6+ Kd5 62. Rc1 e3 63. Rd1 e2 64. Rxd3+ Ke4 65. Rd4+ Kxd4 66. Kh1 e1=Q#) 49. Rb2 {[%emt 0:00:23]} Kd5 {[%emt 0:00:05]} 50. Rd2 {[%emt 0:00:08]} Kc5 {[%emt 0:00:19]} 51. Rb2 {[%emt 0:00:07]} Kc6 {[%emt 0:00:07]} 52. Rd2 {[%emt 0:00:47]} Kb5 {[%emt 0:00:05]} 53. Rb2+ {[%emt 0:00:06]} Ka4 {[%emt 0:00:06]} 54. Rb8 {[%emt 0:00:23]} Ra2+ {[%emt 0:00:10]} 55. Kg1 {[%emt 0:00:04]} Rg2+ {[%emt 0:00:20]} 56. Kh1 {[%emt 0:00:03]} Re2 {[%emt 0:00:11][%csl LRe1,LRe3][%cal Re2e1] Black mates.} 57. Ra8+ {[%emt 0:02:28]} Kb3 {[%emt 0:00:02][%cal Re2e1]} 58. Ra1 {[%emt 0:00:30]} Kb2 {[%emt 0:00:13]} 59. Rd1 {[%emt 0:00:23]} Bc2 {[%emt 0:00:05] Quite a comeback for Black.  Weighted Error Value: White=0.68/Black=0.17 (very precise)} 0-1

[Event "5th Sharjah Masters 2022"]
[Site "Sharjah"]
[Date "2022.05.23"]
[Round "3.18"]
[White "Gukesh D"]
[Black "Suleymanli, Aydin"]
[Result "1-0"]
[ECO "D37"]
[WhiteElo "2659"]
[BlackElo "2537"]
[Annotator "TA"]
[PlyCount "41"]
[EventDate "2022.05.21"]
[EventType "swiss"]
[EventCountry "UAE"]
[SourceTitle "playchess.com"]
[Source "ChessBase"]
[SourceQuality "1"]
[TimeControl "5400+30"]

{[%evp 9,41,36,27,17,23,19,101,110,111,35,37,20,139,145,140,141,137,148,140,135,145,135,131,138,122,125,197,204,218,217,224,218,215,203]} 1. d4 {[%emt 0:00:43]} Nf6 {[%emt 0:00:10]} 2. c4 {[%emt 0:00:44]} e6 {[%emt 0:00:11]} 3. Nf3 {[%emt 0:01:05]} d5 {[%emt 0:00:09]} 4. Nc3 {[%emt 0:00:55]} h6 {[%emt 0:00:29]} 5. g3 {[%emt 0:02:21]} Bd6 {[%emt 0:00:05]} 6. a3 {[%emt 0:00:50] [#] D37: Queen's Gambit Declined: 5 Bf4.} O-O $146 {[%emt 0:02:37]} ({Predecessor:} 6... c5 7. cxd5 exd5 8. Bg2 Be6 9. O-O O-O 10. e3 Nbd7 11. Qe2 Qc7 12. Nb5 Qb6 13. Nxd6 Qxd6 {½-½ (45) Gueye,G-Mansour,S Sharjah 1985}) 7. g4 {[%emt 0:00:12]} Nxg4 {[%emt 0:24:28]} (7... Ne4 $11) 8. Rg1 $16 {[%emt 0:20:52] White is better.} e5 {[%emt 0:01:08]} 9. cxd5 {[%emt 0:09:27]} ({Worse is} 9. Nxd5 e4 10. h3 c6 11. hxg4 cxd5 $17) (9. dxe5 $1 $16 Bc5 10. e3) 9... Re8 {[%emt 0:10:46]} 10. Ne4 {[%emt 0:04:14] Black must now prevent h3.} (10. Bh3 $5 {[%cal Rh3g4]} h5 11. Bxg4 hxg4 12. Nxe5 $14) 10... Bf8 {[%emt 0:11:09] [#]} (10... Bf5 $11 {remains equal.}) 11. h3 $1 {[%emt 0:08:45]} exd4 {[%emt 0:02:45]} 12. Qxd4 {[%emt 0:00:56]} Qe7 {[%emt 0:13:08]} 13. Nc3 {[%emt 0:01:11] 0x0.001de6d31a8bdp-1022s more active pieces. The black rooks are badly placed.} ({Much weaker is} 13. hxg4 $6 Qxe4 14. Be3 Nd7 $11) 13... Ne5 {[%emt 0:01:28]} 14. Nxe5 {[%emt 0:02:14]} Qxe5 {[%emt 0:00:08]} 15. Qxe5 {[%emt 0:00:28]} Rxe5 {[%emt 0:00:04]} 16. Bxh6 {[%emt 0:06:26]} Rh5 {[%emt 0:04:12]} 17. Bf4 {[%emt 0:03:09]} c6 {[%emt 0:00:14]} (17... g6 $16 18. Bxc7 Bxh3) 18. Rd1 $18 {[%emt 0:05:13] White is clearly better.} Bxh3 {[%emt 0:01:36]} 19. Ne4 {[%emt 0:02:08]} Rf5 {[%emt 0:01:28] Prevents Nf6+.} 20. Bxh3 {[%emt 0:01:22]} Rxf4 {[%emt 0:00:39] [#]} 21. Bc8 $1 {[%emt 0:00:21] Weighted Error Value: White=0.06 (flawless) /Black=0.26 (precise)} 1-0